{"text_format":"3","workbook":"xlsx","n_sheets":5,"sheets":["Prezentare generală petrecere","Listă de invitați","Alimentare","Altele bunuri","Grilă de aranjare a locurilor"],"not_rendered":{"defined_names":9},"read":"whole","date_system":"1900"}

{"sheet":"Prezentare generală petrecere","index":0,"n_rows":21,"n_cols":8,"rows_kept":21,"merged":[[6,3,6,4],[6,5,6,6],[9,1,9,2]]}
[]
[]
[null,"Prezentare generală petrecere"]
[]
[]
[null,"EVENIMENT",null,"REZUMAT INVITAȚI",{"$nulls":3},{"$f":"\"CONFIRMĂRI RESTANTE: \"&ConfirmăriRestante","v":"CONFIRMĂRI RESTANTE: 2"}]
[null,"A 75-a aniversare a bunicii",null,"PREZENTARE GENERALĂ A CONFIRMĂRILOR",null,"COSTURI PER INVITAT",null,"VOLUM BUGET"]
[{"$nulls":3},"Invitați confirmați","Număr total de confirmări","Alimente","Altele","Total"]
[null,"DATĂ",null,"Adulți",{"$f":"SUMIF(TabelInvitați[PARTICIPĂ?],\"=Da\",TabelInvitați[ADULȚI])","v":26},{"$f":"TabelAlimente[[#Totals],[COSTURI PER ADULT]]","v":{"v":12.690089084110037,"d":"12.69 lei"}},{"$f":"CostPrincipalPerInvitat","v":{"v":18.695652173913043,"d":"18.70 lei"}},{"$f":"(RezumatParticipanți[[#This Row],[Alimente]]+RezumatParticipanți[[#This Row],[Altele]])*TotalAdulți","v":{"v":816.0292727086002,"d":"816.03 lei"}}]
[null,"2011-06-14",null,"Copii",{"$f":"SUMIF(TabelInvitați[PARTICIPĂ?],\"=Da\",TabelInvitați[COPII])","v":20},{"$f":"TabelAlimente[[#Totals],[COSTURI PER COPIL]]","v":{"v":7.252884190656953,"d":"7.25 lei"}},{"$f":"CostPrincipalPerInvitat","v":{"v":18.695652173913043,"d":"18.70 lei"}},{"$f":"(RezumatParticipanți[[#This Row],[Alimente]]+RezumatParticipanți[[#This Row],[Altele]])*TotalCopii","v":{"v":518.9707272914,"d":"518.97 lei"}}]
[{"$nulls":3},"Total",{"$f":"SUBTOTAL(109,RezumatParticipanți[Număr total de confirmări])","v":46},{"$f":"\"Medie   \"&TEXT(SUBTOTAL(101,RezumatParticipanți[Alimente]),\"#.##0,00 lei\")","v":"Medie   9,97 lei"},{"$f":"\"Medie   \"&TEXT(SUBTOTAL(101,RezumatParticipanți[Altele]),\"#.##0,00 lei\")","v":"Medie   18,70 lei"},{"$f":"SUBTOTAL(109,RezumatParticipanți[Total])","v":{"v":1335,"d":"1,335.00 lei"}}]
[null,"ORĂ"]
[null,"2 pm - 4 pm"]
[]
[null,"LOCAȚIE",null,"REZUMAT BUGET"]
[null,"Casa mătușii Cristina",null,"ARTICOL","CONTOR","VOLUM BUGET","COSTURI TOTALE","DIFERENȚĂ"]
[{"$nulls":3},"Alimentare",{"$f":"COUNTA(TabelAlimente[ARTICOL DE MÂNCARE SAU DE BĂUTURĂ])","v":18},{"v":500,"d":"500.00 lei"},{"$f":"TabelAlimente[[#Totals],[COSTURI TOTALE]]","v":{"v":475,"d":"475.00 lei"}},{"$f":"PrezentareGeneralăBuget[[#This Row],[VOLUM BUGET]]-PrezentareGeneralăBuget[[#This Row],[COSTURI TOTALE]]","v":{"v":25,"d":"25.00 lei"}}]
[{"$nulls":3},{"$f":"Tabel1Antet","v":"Echipament și furnizori"},{"$f":"COUNTA(Tabel1Buget[Echipament și furnizori])","v":7},{"v":400,"d":"400.00 lei"},{"$f":"Tabel1Buget[[#Totals],[Costuri]]","v":{"v":400,"d":"400.00 lei"}},{"$f":"PrezentareGeneralăBuget[[#This Row],[VOLUM BUGET]]-PrezentareGeneralăBuget[[#This Row],[COSTURI TOTALE]]","v":{"v":0,"d":"0.00 lei"}}]
[{"$nulls":3},{"$f":"Tabel2Antet","v":"Decorațiuni"},{"$f":"COUNTA(Tabel2Buget[Decorațiuni])","v":4},{"v":150,"d":"150.00 lei"},{"$f":"Tabel2Buget[[#Totals],[Costuri]]","v":{"v":175,"d":"175.00 lei"}},{"$f":"PrezentareGeneralăBuget[[#This Row],[VOLUM BUGET]]-PrezentareGeneralăBuget[[#This Row],[COSTURI TOTALE]]","v":{"v":-25,"d":"-25.00 lei"}}]
[{"$nulls":3},{"$f":"Tabel3Antet","v":"Altele"},{"$f":"COUNTA(Tabel3Buget[Altele])","v":4},{"v":300,"d":"300.00 lei"},{"$f":"Tabel3Buget[[#Totals],[Costuri]]","v":{"v":285,"d":"285.00 lei"}},{"$f":"PrezentareGeneralăBuget[[#This Row],[VOLUM BUGET]]-PrezentareGeneralăBuget[[#This Row],[COSTURI TOTALE]]","v":{"v":15,"d":"15.00 lei"}}]
[{"$nulls":3},"Total",{"$f":"SUBTOTAL(109,PrezentareGeneralăBuget[CONTOR])","v":33},{"$f":"SUBTOTAL(109,PrezentareGeneralăBuget[VOLUM BUGET])","v":{"v":1350,"d":"1,350.00 lei"}},{"$f":"SUBTOTAL(109,PrezentareGeneralăBuget[COSTURI TOTALE])","v":{"v":1335,"d":"1,335.00 lei"}},{"$f":"SUBTOTAL(109,PrezentareGeneralăBuget[DIFERENȚĂ])","v":{"v":15,"d":"15.00 lei"}}]

{"sheet":"Listă de invitați","index":1,"n_rows":22,"n_cols":12,"rows_kept":22}
[]
[]
[null,"Listă de invitați"]
[]
[]
[]
[null,"NUME","ADRESĂ","ORAȘ","JUDEȚ/STAT","COD ZIP","TELEFON","E-MAIL","PARTICIPĂ?","COPII","ADULȚI","TOTAL"]
[null,"Familia 1","Adresa 1","Oraș 1","Județ 1","Cod poștal 1","Telefon 1","E-mail1","Nu",2,2,{"$f":"SUM(TabelInvitați[[#This Row],[COPII]:[ADULȚI]])","v":4}]
[null,"Familia 2","Adresa 2","Oraș 2","Județ 2","Cod poștal 2","Telefon 2","E-mail2","Da",1,1,{"$f":"SUM(TabelInvitați[[#This Row],[COPII]:[ADULȚI]])","v":2}]
[null,"Familia 3","Adresa 3","Oraș 3","Județ 3","Cod poștal 3","Telefon 3","E-mail3","Da",3,3,{"$f":"SUM(TabelInvitați[[#This Row],[COPII]:[ADULȚI]])","v":6}]
[null,"Familia 4","Adresa 4","Oraș 4","Județ 4","Cod poștal 4","Telefon 4","E-mail4",null,null,2,{"$f":"SUM(TabelInvitați[[#This Row],[COPII]:[ADULȚI]])","v":2}]
[null,"Familia 5","Adresa 5","Oraș 5","Județ 5","Cod poștal 5","Telefon 5","E-mail5","Da",4,3,{"$f":"SUM(TabelInvitați[[#This Row],[COPII]:[ADULȚI]])","v":7}]
[null,"Familia 6","Adresa 6","Oraș 6","Județ 6","Cod poștal 6","Telefon 6","E-mail6","Da",2,2,{"$f":"SUM(TabelInvitați[[#This Row],[COPII]:[ADULȚI]])","v":4}]
[null,"Familia 7","Adresa 7","Oraș 7","Județ 7","Cod poștal 7","Telefon 7","E-mail7","Da",1,4,{"$f":"SUM(TabelInvitați[[#This Row],[COPII]:[ADULȚI]])","v":5}]
[null,"Familia 8","Adresa 8","Oraș 8","Județ 8","Cod poștal 8","Telefon 8","E-mail8","Nu",5,3,{"$f":"SUM(TabelInvitați[[#This Row],[COPII]:[ADULȚI]])","v":8}]
[null,"Familia 9","Adresa 9","Oraș 9","Județ 9","Cod poștal 9","Telefon 9","E-mail9","Da",3,2,{"$f":"SUM(TabelInvitați[[#This Row],[COPII]:[ADULȚI]])","v":5}]
[null,"Familia 10","Adresa 10","Oraș 10","Județ 10","Cod poștal 10","Telefon 10","E-mail10","Da",null,4,{"$f":"SUM(TabelInvitați[[#This Row],[COPII]:[ADULȚI]])","v":4}]
[null,"Familia 11","Adresa 11","Oraș 11","Județ 11","Cod poștal 11","Telefon 11","E-mail11","Da",3,5,{"$f":"SUM(TabelInvitați[[#This Row],[COPII]:[ADULȚI]])","v":8}]
[null,"Familia 12","Adresa 12","Oraș 12","Județ 12","Cod poștal 12","Telefon 12","E-mail12","Nu",2,3,{"$f":"SUM(TabelInvitați[[#This Row],[COPII]:[ADULȚI]])","v":5}]
[null,"Familia 13","Adresa 13","Oraș 13","Județ 13","Cod poștal 13","Telefon 13","E-mail13","Da",3,2,{"$f":"SUM(TabelInvitați[[#This Row],[COPII]:[ADULȚI]])","v":5}]
[null,"Familia 14","Adresa 14","Oraș 14","Județ 14","Cod poștal 14","Telefon 14","E-mail14","Nu",null,1,{"$f":"SUM(TabelInvitați[[#This Row],[COPII]:[ADULȚI]])","v":1}]
[null,"Familia 15","Adresa 15","Oraș 15","Județ 15","Cod poștal 15","Telefon 15","E-mail15",null,null,2,{"$f":"SUM(TabelInvitați[[#This Row],[COPII]:[ADULȚI]])","v":2}]

{"sheet":"Alimentare","index":2,"n_rows":25,"n_cols":10,"rows_kept":25}
[]
[]
[null,"Alimentare"]
[]
[null,"Introduceți costurile și porțiile estimate pentru a calcula automat piesele totale și costurile pentru fiecare porție pe baza totalului de participanți"]
[null,"ARTICOL DE MÂNCARE SAU DE BĂUTURĂ","COSTURI TOTALE","PORȚII PENTRU FIECARE COPIL","PORȚII PENTRU FIECARE ADULT","TOTAL PORȚII","COSTURI PER PORȚIE","COSTURI PER COPIL","COSTURI PER ADULT","NOTE"]
[null,"Sifon",{"v":15,"d":"15.00 lei"},0.5,2,{"$f":"(TabelAlimente[[#This Row],[PORȚII PENTRU FIECARE COPIL]]*TotalCopii)+(TabelAlimente[[#This Row],[PORȚII PENTRU FIECARE ADULT]]*TotalAdulți)","v":62},{"$f":"IFERROR(TabelAlimente[[#This Row],[COSTURI TOTALE]]/TabelAlimente[[#This Row],[TOTAL PORȚII]],\"\")","v":{"v":0.24193548387096775,"d":"0.24 lei"}},{"$f":"IFERROR(TabelAlimente[[#This Row],[COSTURI PER PORȚIE]]*TabelAlimente[[#This Row],[PORȚII PENTRU FIECARE COPIL]],\"\")","v":{"v":0.12096774193548387,"d":"0.12 lei"}},{"$f":"IFERROR(TabelAlimente[[#This Row],[COSTURI PER PORȚIE]]*TabelAlimente[[#This Row],[PORȚII PENTRU FIECARE ADULT]],\"\")","v":{"v":0.4838709677419355,"d":"0.48 lei"}},"Sticle de 2 litri"]
[null,"Cutii de suc",{"v":15,"d":"15.00 lei"},2,0,{"$f":"(TabelAlimente[[#This Row],[PORȚII PENTRU FIECARE COPIL]]*TotalCopii)+(TabelAlimente[[#This Row],[PORȚII PENTRU FIECARE ADULT]]*TotalAdulți)","v":40},{"$f":"IFERROR(TabelAlimente[[#This Row],[COSTURI TOTALE]]/TabelAlimente[[#This Row],[TOTAL PORȚII]],\"\")","v":{"v":0.375,"d":"0.38 lei"}},{"$f":"IFERROR(TabelAlimente[[#This Row],[COSTURI PER PORȚIE]]*TabelAlimente[[#This Row],[PORȚII PENTRU FIECARE COPIL]],\"\")","v":{"v":0.75,"d":"0.75 lei"}},{"$f":"IFERROR(TabelAlimente[[#This Row],[COSTURI PER PORȚIE]]*TabelAlimente[[#This Row],[PORȚII PENTRU FIECARE ADULT]],\"\")","v":{"v":0,"d":"0.00 lei"}},"Măr cu struguri albi"]
[null,"Vin",{"v":50,"d":"50.00 lei"},0,2,{"$f":"(TabelAlimente[[#This Row],[PORȚII PENTRU FIECARE COPIL]]*TotalCopii)+(TabelAlimente[[#This Row],[PORȚII PENTRU FIECARE ADULT]]*TotalAdulți)","v":52},{"$f":"IFERROR(TabelAlimente[[#This Row],[COSTURI TOTALE]]/TabelAlimente[[#This Row],[TOTAL PORȚII]],\"\")","v":{"v":0.9615384615384616,"d":"0.96 lei"}},{"$f":"IFERROR(TabelAlimente[[#This Row],[COSTURI PER PORȚIE]]*TabelAlimente[[#This Row],[PORȚII PENTRU FIECARE COPIL]],\"\")","v":{"v":0,"d":"0.00 lei"}},{"$f":"IFERROR(TabelAlimente[[#This Row],[COSTURI PER PORȚIE]]*TabelAlimente[[#This Row],[PORȚII PENTRU FIECARE ADULT]],\"\")","v":{"v":1.9230769230769231,"d":"1.92 lei"}}]
[null,"Tort",{"v":75,"d":"75.00 lei"},1,1,{"$f":"(TabelAlimente[[#This Row],[PORȚII PENTRU FIECARE COPIL]]*TotalCopii)+(TabelAlimente[[#This Row],[PORȚII PENTRU FIECARE ADULT]]*TotalAdulți)","v":46},{"$f":"IFERROR(TabelAlimente[[#This Row],[COSTURI TOTALE]]/TabelAlimente[[#This Row],[TOTAL PORȚII]],\"\")","v":{"v":1.6304347826086956,"d":"1.63 lei"}},{"$f":"IFERROR(TabelAlimente[[#This Row],[COSTURI PER PORȚIE]]*TabelAlimente[[#This Row],[PORȚII PENTRU FIECARE COPIL]],\"\")","v":{"v":1.6304347826086956,"d":"1.63 lei"}},{"$f":"IFERROR(TabelAlimente[[#This Row],[COSTURI PER PORȚIE]]*TabelAlimente[[#This Row],[PORȚII PENTRU FIECARE ADULT]],\"\")","v":{"v":1.6304347826086956,"d":"1.63 lei"}},"Comandați de la magazinul alimentar local"]
[null,"Înghețată",{"v":20,"d":"20.00 lei"},1,1.5,{"$f":"(TabelAlimente[[#This Row],[PORȚII PENTRU FIECARE COPIL]]*TotalCopii)+(TabelAlimente[[#This Row],[PORȚII PENTRU FIECARE ADULT]]*TotalAdulți)","v":59},{"$f":"IFERROR(TabelAlimente[[#This Row],[COSTURI TOTALE]]/TabelAlimente[[#This Row],[TOTAL PORȚII]],\"\")","v":{"v":0.3389830508474576,"d":"0.34 lei"}},{"$f":"IFERROR(TabelAlimente[[#This Row],[COSTURI PER PORȚIE]]*TabelAlimente[[#This Row],[PORȚII PENTRU FIECARE COPIL]],\"\")","v":{"v":0.3389830508474576,"d":"0.34 lei"}},{"$f":"IFERROR(TabelAlimente[[#This Row],[COSTURI PER PORȚIE]]*TabelAlimente[[#This Row],[PORȚII PENTRU FIECARE ADULT]],\"\")","v":{"v":0.5084745762711864,"d":"0.51 lei"}}]
[null,"Pahare budincă",{"v":15,"d":"15.00 lei"},1,0,{"$f":"(TabelAlimente[[#This Row],[PORȚII PENTRU FIECARE COPIL]]*TotalCopii)+(TabelAlimente[[#This Row],[PORȚII PENTRU FIECARE ADULT]]*TotalAdulți)","v":20},{"$f":"IFERROR(TabelAlimente[[#This Row],[COSTURI TOTALE]]/TabelAlimente[[#This Row],[TOTAL PORȚII]],\"\")","v":{"v":0.75,"d":"0.75 lei"}},{"$f":"IFERROR(TabelAlimente[[#This Row],[COSTURI PER PORȚIE]]*TabelAlimente[[#This Row],[PORȚII PENTRU FIECARE COPIL]],\"\")","v":{"v":0.75,"d":"0.75 lei"}},{"$f":"IFERROR(TabelAlimente[[#This Row],[COSTURI PER PORȚIE]]*TabelAlimente[[#This Row],[PORȚII PENTRU FIECARE ADULT]],\"\")","v":{"v":0,"d":"0.00 lei"}},"De cumpărat cupe la pachet: vanilie și ciocolată"]
[null,"Ciuperci umplute",{"v":32,"d":"32.00 lei"},1,2,{"$f":"(TabelAlimente[[#This Row],[PORȚII PENTRU FIECARE COPIL]]*TotalCopii)+(TabelAlimente[[#This Row],[PORȚII PENTRU FIECARE ADULT]]*TotalAdulți)","v":72},{"$f":"IFERROR(TabelAlimente[[#This Row],[COSTURI TOTALE]]/TabelAlimente[[#This Row],[TOTAL PORȚII]],\"\")","v":{"v":0.4444444444444444,"d":"0.44 lei"}},{"$f":"IFERROR(TabelAlimente[[#This Row],[COSTURI PER PORȚIE]]*TabelAlimente[[#This Row],[PORȚII PENTRU FIECARE COPIL]],\"\")","v":{"v":0.4444444444444444,"d":"0.44 lei"}},{"$f":"IFERROR(TabelAlimente[[#This Row],[COSTURI PER PORȚIE]]*TabelAlimente[[#This Row],[PORȚII PENTRU FIECARE ADULT]],\"\")","v":{"v":0.8888888888888888,"d":"0.89 lei"}},"Ciuperci umplute cu smântână și cârnați"]
[null,"Bruschete",{"v":22,"d":"22.00 lei"},0,3,{"$f":"(TabelAlimente[[#This Row],[PORȚII PENTRU FIECARE COPIL]]*TotalCopii)+(TabelAlimente[[#This Row],[PORȚII PENTRU FIECARE ADULT]]*TotalAdulți)","v":78},{"$f":"IFERROR(TabelAlimente[[#This Row],[COSTURI TOTALE]]/TabelAlimente[[#This Row],[TOTAL PORȚII]],\"\")","v":{"v":0.28205128205128205,"d":"0.28 lei"}},{"$f":"IFERROR(TabelAlimente[[#This Row],[COSTURI PER PORȚIE]]*TabelAlimente[[#This Row],[PORȚII PENTRU FIECARE COPIL]],\"\")","v":{"v":0,"d":"0.00 lei"}},{"$f":"IFERROR(TabelAlimente[[#This Row],[COSTURI PER PORȚIE]]*TabelAlimente[[#This Row],[PORȚII PENTRU FIECARE ADULT]],\"\")","v":{"v":0.8461538461538461,"d":"0.85 lei"}},"Roșii cu busuioc"]
[null,"Somon afumat",{"v":50,"d":"50.00 lei"},1,2,{"$f":"(TabelAlimente[[#This Row],[PORȚII PENTRU FIECARE COPIL]]*TotalCopii)+(TabelAlimente[[#This Row],[PORȚII PENTRU FIECARE ADULT]]*TotalAdulți)","v":72},{"$f":"IFERROR(TabelAlimente[[#This Row],[COSTURI TOTALE]]/TabelAlimente[[#This Row],[TOTAL PORȚII]],\"\")","v":{"v":0.6944444444444444,"d":"0.69 lei"}},{"$f":"IFERROR(TabelAlimente[[#This Row],[COSTURI PER PORȚIE]]*TabelAlimente[[#This Row],[PORȚII PENTRU FIECARE COPIL]],\"\")","v":{"v":0.6944444444444444,"d":"0.69 lei"}},{"$f":"IFERROR(TabelAlimente[[#This Row],[COSTURI PER PORȚIE]]*TabelAlimente[[#This Row],[PORȚII PENTRU FIECARE ADULT]],\"\")","v":{"v":1.3888888888888888,"d":"1.39 lei"}}]
[null,"Covrigei",{"v":20,"d":"20.00 lei"},1,2,{"$f":"(TabelAlimente[[#This Row],[PORȚII PENTRU FIECARE COPIL]]*TotalCopii)+(TabelAlimente[[#This Row],[PORȚII PENTRU FIECARE ADULT]]*TotalAdulți)","v":72},{"$f":"IFERROR(TabelAlimente[[#This Row],[COSTURI TOTALE]]/TabelAlimente[[#This Row],[TOTAL PORȚII]],\"\")","v":{"v":0.2777777777777778,"d":"0.28 lei"}},{"$f":"IFERROR(TabelAlimente[[#This Row],[COSTURI PER PORȚIE]]*TabelAlimente[[#This Row],[PORȚII PENTRU FIECARE COPIL]],\"\")","v":{"v":0.2777777777777778,"d":"0.28 lei"}},{"$f":"IFERROR(TabelAlimente[[#This Row],[COSTURI PER PORȚIE]]*TabelAlimente[[#This Row],[PORȚII PENTRU FIECARE ADULT]],\"\")","v":{"v":0.5555555555555556,"d":"0.56 lei"}},"4 pungi - asortate"]
[null,"Smântână",{"v":10,"d":"10.00 lei"},1,2,{"$f":"(TabelAlimente[[#This Row],[PORȚII PENTRU FIECARE COPIL]]*TotalCopii)+(TabelAlimente[[#This Row],[PORȚII PENTRU FIECARE ADULT]]*TotalAdulți)","v":72},{"$f":"IFERROR(TabelAlimente[[#This Row],[COSTURI TOTALE]]/TabelAlimente[[#This Row],[TOTAL PORȚII]],\"\")","v":{"v":0.1388888888888889,"d":"0.14 lei"}},{"$f":"IFERROR(TabelAlimente[[#This Row],[COSTURI PER PORȚIE]]*TabelAlimente[[#This Row],[PORȚII PENTRU FIECARE COPIL]],\"\")","v":{"v":0.1388888888888889,"d":"0.14 lei"}},{"$f":"IFERROR(TabelAlimente[[#This Row],[COSTURI PER PORȚIE]]*TabelAlimente[[#This Row],[PORȚII PENTRU FIECARE ADULT]],\"\")","v":{"v":0.2777777777777778,"d":"0.28 lei"}},"2 căzi mari"]
[null,"Capere",{"v":12,"d":"12.00 lei"},1,2,{"$f":"(TabelAlimente[[#This Row],[PORȚII PENTRU FIECARE COPIL]]*TotalCopii)+(TabelAlimente[[#This Row],[PORȚII PENTRU FIECARE ADULT]]*TotalAdulți)","v":72},{"$f":"IFERROR(TabelAlimente[[#This Row],[COSTURI TOTALE]]/TabelAlimente[[#This Row],[TOTAL PORȚII]],\"\")","v":{"v":0.16666666666666666,"d":"0.17 lei"}},{"$f":"IFERROR(TabelAlimente[[#This Row],[COSTURI PER PORȚIE]]*TabelAlimente[[#This Row],[PORȚII PENTRU FIECARE COPIL]],\"\")","v":{"v":0.16666666666666666,"d":"0.17 lei"}},{"$f":"IFERROR(TabelAlimente[[#This Row],[COSTURI PER PORȚIE]]*TabelAlimente[[#This Row],[PORȚII PENTRU FIECARE ADULT]],\"\")","v":{"v":0.3333333333333333,"d":"0.33 lei"}},"3 borcane"]
[null,"Aripioare de pui",{"v":45,"d":"45.00 lei"},2,4,{"$f":"(TabelAlimente[[#This Row],[PORȚII PENTRU FIECARE COPIL]]*TotalCopii)+(TabelAlimente[[#This Row],[PORȚII PENTRU FIECARE ADULT]]*TotalAdulți)","v":144},{"$f":"IFERROR(TabelAlimente[[#This Row],[COSTURI TOTALE]]/TabelAlimente[[#This Row],[TOTAL PORȚII]],\"\")","v":{"v":0.3125,"d":"0.31 lei"}},{"$f":"IFERROR(TabelAlimente[[#This Row],[COSTURI PER PORȚIE]]*TabelAlimente[[#This Row],[PORȚII PENTRU FIECARE COPIL]],\"\")","v":{"v":0.625,"d":"0.63 lei"}},{"$f":"IFERROR(TabelAlimente[[#This Row],[COSTURI PER PORȚIE]]*TabelAlimente[[#This Row],[PORȚII PENTRU FIECARE ADULT]],\"\")","v":{"v":1.25,"d":"1.25 lei"}},"Cumpărați de la magazinul local"]
[null,"Humus",{"v":10,"d":"10.00 lei"},4,6,{"$f":"(TabelAlimente[[#This Row],[PORȚII PENTRU FIECARE COPIL]]*TotalCopii)+(TabelAlimente[[#This Row],[PORȚII PENTRU FIECARE ADULT]]*TotalAdulți)","v":236},{"$f":"IFERROR(TabelAlimente[[#This Row],[COSTURI TOTALE]]/TabelAlimente[[#This Row],[TOTAL PORȚII]],\"\")","v":{"v":0.0423728813559322,"d":"0.04 lei"}},{"$f":"IFERROR(TabelAlimente[[#This Row],[COSTURI PER PORȚIE]]*TabelAlimente[[#This Row],[PORȚII PENTRU FIECARE COPIL]],\"\")","v":{"v":0.1694915254237288,"d":"0.17 lei"}},{"$f":"IFERROR(TabelAlimente[[#This Row],[COSTURI PER PORȚIE]]*TabelAlimente[[#This Row],[PORȚII PENTRU FIECARE ADULT]],\"\")","v":{"v":0.2542372881355932,"d":"0.25 lei"}},"Se pregătesc cu o noapte înainte"]
[null,"Biscuiți crocanți cu parmezan",{"v":14,"d":"14.00 lei"},4,6,{"$f":"(TabelAlimente[[#This Row],[PORȚII PENTRU FIECARE COPIL]]*TotalCopii)+(TabelAlimente[[#This Row],[PORȚII PENTRU FIECARE ADULT]]*TotalAdulți)","v":236},{"$f":"IFERROR(TabelAlimente[[#This Row],[COSTURI TOTALE]]/TabelAlimente[[#This Row],[TOTAL PORȚII]],\"\")","v":{"v":0.059322033898305086,"d":"0.06 lei"}},{"$f":"IFERROR(TabelAlimente[[#This Row],[COSTURI PER PORȚIE]]*TabelAlimente[[#This Row],[PORȚII PENTRU FIECARE COPIL]],\"\")","v":{"v":0.23728813559322035,"d":"0.24 lei"}},{"$f":"IFERROR(TabelAlimente[[#This Row],[COSTURI PER PORȚIE]]*TabelAlimente[[#This Row],[PORȚII PENTRU FIECARE ADULT]],\"\")","v":{"v":0.3559322033898305,"d":"0.36 lei"}},"Se pregătesc cu o noapte înainte"]
[null,"Legume asortate",{"v":30,"d":"30.00 lei"},4,10,{"$f":"(TabelAlimente[[#This Row],[PORȚII PENTRU FIECARE COPIL]]*TotalCopii)+(TabelAlimente[[#This Row],[PORȚII PENTRU FIECARE ADULT]]*TotalAdulți)","v":340},{"$f":"IFERROR(TabelAlimente[[#This Row],[COSTURI TOTALE]]/TabelAlimente[[#This Row],[TOTAL PORȚII]],\"\")","v":{"v":0.08823529411764706,"d":"0.09 lei"}},{"$f":"IFERROR(TabelAlimente[[#This Row],[COSTURI PER PORȚIE]]*TabelAlimente[[#This Row],[PORȚII PENTRU FIECARE COPIL]],\"\")","v":{"v":0.35294117647058826,"d":"0.35 lei"}},{"$f":"IFERROR(TabelAlimente[[#This Row],[COSTURI PER PORȚIE]]*TabelAlimente[[#This Row],[PORȚII PENTRU FIECARE ADULT]],\"\")","v":{"v":0.8823529411764707,"d":"0.88 lei"}},"Bețe din morcovi, țelină, broccoli, conopidă, ardei roșii și verzi"]
[null,"Bile de brânză",{"v":15,"d":"15.00 lei"},5,10,{"$f":"(TabelAlimente[[#This Row],[PORȚII PENTRU FIECARE COPIL]]*TotalCopii)+(TabelAlimente[[#This Row],[PORȚII PENTRU FIECARE ADULT]]*TotalAdulți)","v":360},{"$f":"IFERROR(TabelAlimente[[#This Row],[COSTURI TOTALE]]/TabelAlimente[[#This Row],[TOTAL PORȚII]],\"\")","v":{"v":0.041666666666666664,"d":"0.04 lei"}},{"$f":"IFERROR(TabelAlimente[[#This Row],[COSTURI PER PORȚIE]]*TabelAlimente[[#This Row],[PORȚII PENTRU FIECARE COPIL]],\"\")","v":{"v":0.20833333333333331,"d":"0.21 lei"}},{"$f":"IFERROR(TabelAlimente[[#This Row],[COSTURI PER PORȚIE]]*TabelAlimente[[#This Row],[PORȚII PENTRU FIECARE ADULT]],\"\")","v":{"v":0.41666666666666663,"d":"0.42 lei"}},"Asortate: smântână, brânză veche cu nuci"]
[null,"Biscuiți crocanți",{"v":25,"d":"25.00 lei"},5,10,{"$f":"(TabelAlimente[[#This Row],[PORȚII PENTRU FIECARE COPIL]]*TotalCopii)+(TabelAlimente[[#This Row],[PORȚII PENTRU FIECARE ADULT]]*TotalAdulți)","v":360},{"$f":"IFERROR(TabelAlimente[[#This Row],[COSTURI TOTALE]]/TabelAlimente[[#This Row],[TOTAL PORȚII]],\"\")","v":{"v":0.06944444444444445,"d":"0.07 lei"}},{"$f":"IFERROR(TabelAlimente[[#This Row],[COSTURI PER PORȚIE]]*TabelAlimente[[#This Row],[PORȚII PENTRU FIECARE COPIL]],\"\")","v":{"v":0.3472222222222222,"d":"0.35 lei"}},{"$f":"IFERROR(TabelAlimente[[#This Row],[COSTURI PER PORȚIE]]*TabelAlimente[[#This Row],[PORȚII PENTRU FIECARE ADULT]],\"\")","v":{"v":0.6944444444444444,"d":"0.69 lei"}},"Asortate"]
[null,"Total",{"$f":"SUBTOTAL(109,TabelAlimente[COSTURI TOTALE])","v":{"v":475,"d":"475.00 lei"}},{"$f":"SUBTOTAL(109,TabelAlimente[PORȚII PENTRU FIECARE COPIL])","v":34.5},{"$f":"SUBTOTAL(109,TabelAlimente[PORȚII PENTRU FIECARE ADULT])","v":65.5},{"$f":"SUBTOTAL(109,TabelAlimente[TOTAL PORȚII])","v":2393},{"$f":"SUBTOTAL(109,TabelAlimente[COSTURI PER PORȚIE])","v":{"v":6.915706603622084,"d":"6.92 lei"}},{"$f":"SUBTOTAL(109,TabelAlimente[COSTURI PER COPIL])","v":{"v":7.252884190656953,"d":"7.25 lei"}},{"$f":"SUBTOTAL(109,TabelAlimente[COSTURI PER ADULT])","v":{"v":12.690089084110037,"d":"12.69 lei"}}]

{"sheet":"Altele bunuri","index":3,"n_rows":30,"n_cols":5,"rows_kept":30,"merged":[[14,1,14,4],[22,1,22,4]]}
[]
[]
[null,"Altele bunuri"]
[]
[]
[null,"Echipament și furnizori","Costuri","Achiziționat","Note"]
[null,"Închiriere cameră/sală",{"v":250,"d":"250.00 lei"},"Da"]
[null,"Lenjerie",{"v":30,"d":"30.00 lei"},"Da","Chirie"]
[null,"Mese și scaune",{"v":0,"d":"0.00 lei"},null,"Incluse în închirierea sălii"]
[null,"Batiste pentru băuturi",{"v":25,"d":"25.00 lei"}]
[null,"Batiste pentru cină",{"v":20,"d":"20.00 lei"},null,"Chirie"]
[null,"Servire la masă",{"v":50,"d":"50.00 lei"},null,"Chirie"]
[null,"Sticlărie",{"v":25,"d":"25.00 lei"},null,"Chirie"]
[null,"Total",{"$f":"SUBTOTAL(109,Tabel1Buget[Costuri])","v":{"v":400,"d":"400.00 lei"}}]
[]
[]
[null,"Decorațiuni","Costuri","Achiziționat","Note"]
[null,"Baloane",{"v":25,"d":"25.00 lei"}]
[null,"Bazin cu heliu",{"v":50,"d":"50.00 lei"},null,"Chirie"]
[null,"Articole importante",{"v":100,"d":"100.00 lei"},"Da","10 în total"]
[null,"Vaze de sticlă",{"v":0,"d":"0.00 lei"},null,"Împrumutat de la Cristina"]
[null,"Total",{"$f":"SUBTOTAL(109,Tabel2Buget[Costuri])","v":{"v":175,"d":"175.00 lei"}}]
[]
[]
[null,"Altele","Costuri","Achiziționat","Note"]
[null,"Invitații",{"v":50,"d":"50.00 lei"},"Da"]
[null,"Tarife poștale",{"v":60,"d":"60.00 lei"},"Da"]
[null,"Fotograf",{"v":125,"d":"125.00 lei"},null,"2 ore (2 pm - 4 pm)"]
[null,"Surprize de petrecere",{"v":50,"d":"50.00 lei"}]
[null,"Total",{"$f":"SUBTOTAL(109,Tabel3Buget[Costuri])","v":{"v":285,"d":"285.00 lei"}}]

{"sheet":"Grilă de aranjare a locurilor","index":4,"n_rows":43,"n_cols":34,"rows_kept":43,"merged":[[35,0,35,17],[35,19,35,33]]}
["Aranjarea locurilor"]
{"$rows_empty":33}
[{"$nulls":33},"*1 pătrat= aproximativ 1 picior pătrat"]
["Note",{"$nulls":18},{"$f":"\" Total invitați confirmați: \"&InvitațiConfirmați","v":" Total invitați confirmați: 46"}]
[{"$nulls":19},"Puteți utiliza oricare dintre următoarele așezări ale mesei:"]
[{"$nulls":20},{"$f":"ROUNDUP(InvitațiConfirmați/6,0)&\" mese rotunde de 140 cm (6 persoane)\"","v":"8 mese rotunde de 140 cm (6 persoane)"}]
[{"$nulls":20},{"$f":"ROUNDUP(InvitațiConfirmați/8,0) &\" mese rotunde de 155 cm (8 persoane)\"","v":"6 mese rotunde de 155 cm (8 persoane)"}]
[{"$nulls":20},{"$f":"ROUNDUP(InvitațiConfirmați/10,0)&\" mese rotunde de 180 cm (10 persoane)\"","v":"5 mese rotunde de 180 cm (10 persoane)"}]
[{"$nulls":20},{"$f":"ROUNDUP(InvitațiConfirmați/6,0)& \" mese dreptunghiulare de 76 cm x 180 cm (6 persoane)\"","v":"8 mese dreptunghiulare de 76 cm x 180 cm (6 persoane)"}]
[{"$nulls":20},{"$f":"ROUNDUP(InvitațiConfirmați/8,0)&\" mese dreptunghiulare de 76 cm x 245 cm (8 persoane)\"","v":"6 mese dreptunghiulare de 76 cm x 245 cm (8 persoane)"}]
[{"$nulls":19},"(Spațiu preferat între mese: 42 inchi)"]